bitfinex/quotes_SOLUSD_20250602
["timestamp","ask_amount","ask_price","bid_price","bid_amount"]
[1748886462899,10.5,153.22,153.19,6.52784124]
[1748886463110,33.79427331,153.22,153.19,6.52784124]
[1748886467835,23.29427331,153.21,153.19,6.52784124]
[1748886469608,33.79427331,153.22,153.19,6.52784124]
[1748886471732,23.29427331,153.22,153.19,6.52784124]
[1748886472610,6.95178879,153.25,153.19,6.52784124]
[1748886472611,23.29427331,153.21,153.19,6.52784124]
[1748886473736,23.68647331,153.22,153.19,6.52784124]
[1748886481027,23.29427331,153.21,153.19,6.52784124]
[1748886488745,23.43643488,153.2,153.15,16.3238174]
[1748886489070,23.29427331,153.18,153.15,22.85336359]
[1748886489351,23.29427331,153.21,153.17,23.29427331]
[1748886491144,23.29427331,153.21,153.18,6.52826739]
[1748886491531,23.72075802,153.22,153.18,6.52826739]
[1748886492348,23.43643488,153.22,153.18,22.84893588]
[1748886494340,23.29427331,153.21,153.18,6.52826739]
[1748886495235,23.29427331,153.19,153.15,6.52954619]
[1748886495530,23.29427331,153.19,153.15,22.85341168]
[1748886496457,23.29427331,153.19,153.15,46.14768499]
[1748886496759,23.29427331,153.19,153.15,22.85341168]
[1748886497052,23.29427331,153.19,153.15,46.14768499]
[1748886500241,0.14216157,153.21,153.15,46.14768499]
[1748886500448,23.29427331,153.19,153.15,46.14768499]
[1748886501043,0.67652314,153.22,153.15,46.14768499]
[1748886501248,14.87617874,153.2,153.15,37.72959042]
[1748886501445,0.3922,153.22,153.2,26.0]
[1748886501646,0.3922,153.22,153.21,20.95017874]
[1748886502166,0.3922,153.22,153.21,27.47716783]
[1748886503159,0.3922,153.22,153.21,12.60098909]
[1748886503363,0.3922,153.22,153.21,35.81713774]
[1748886504064,0.3922,153.22,153.21,37.39483774]
[1748886507949,23.4249103,153.31,153.21,105.1390664]
[1748886507950,12.9249103,153.31,153.21,105.1390664]
[1748886508141,12.9249103,153.31,153.28,23.21614865]
[1748886509371,12.9249103,153.31,153.27,23.21614865]
[1748886509564,12.9249103,153.31,153.28,6.52400835]
[1748886510143,12.9249103,153.31,153.28,29.740157]
[1748886510480,12.9249103,153.31,153.29,23.21614865]
[1748886511245,0.14216157,153.33,153.29,23.21614865]
[1748886511672,0.14216157,153.33,153.3,6.5231572]
[1748886512452,23.35831022,153.33,153.3,6.5231572]
[1748886512656,23.35831022,153.33,153.29,6.52352841]
[1748886512657,23.21614865,153.32,153.29,6.52352841]
[1748886513748,23.35831022,153.33,153.29,29.73967706]
[1748886513949,0.14216157,153.33,153.29,29.73967706]
[1748886514147,17.90609,153.35,153.3,26.0]
[1748886514472,23.21614865,153.39,153.34,23.21614865]
[1748886514765,29.14964886,153.4,153.34,23.21614865]
[1748886514766,23.35831022,153.38,153.34,23.21614865]
[1748886514969,23.21614865,153.38,153.34,23.21614865]
[1748886515150,29.14964886,153.4,153.34,23.21614865]
[1748886515349,23.21614865,153.38,153.34,23.21614865]
[1748886515745,23.21614865,153.38,153.33,29.73802956]
[1748886515979,23.21614865,153.36,153.33,6.52188091]
[1748886516956,23.35831022,153.35,153.28,16.30897069]
[1748886517156,23.21614865,153.33,153.32,26.0]
[1748886517471,23.21614865,153.33,153.3,26.0]
[1748886517870,23.21614865,153.34,153.31,6.52273172]
[1748886518666,0.42648471,153.36,153.31,6.52273172]
[1748886518874,23.21614865,153.34,153.31,6.52273172]
[1748886519469,23.21614865,153.35,153.31,6.52273172]
[1748886519972,23.21614865,153.35,153.31,46.04570967]
[1748886520141,23.21614865,153.33,153.31,6.52273172]
[1748886520654,23.35831022,153.34,153.31,6.52273172]
[1748886523266,23.21614865,153.32,153.31,6.52273172]
[1748886523583,0.14216157,153.34,153.31,6.52273172]
[1748886523884,23.21614865,153.33,153.31,6.52273172]
[1748886532887,23.21614865,153.36,153.32,23.21614865]
[1748886533092,23.21614865,153.37,153.33,23.21614865]
[1748886533386,33.69614865,153.38,153.33,23.21614865]
[1748886533888,23.21614865,153.37,153.33,23.21614865]
[1748886534298,23.21614865,153.37,153.34,22.82509455]
[1748886534476,10.48,153.38,153.34,22.82509455]
[1748886534684,23.21614865,153.37,153.34,22.82509455]
[1748886534882,23.21614865,153.39,153.34,46.0412432]
[1748886535696,23.21614865,153.39,153.35,23.21614865]
[1748886536097,33.69614865,153.41,153.36,23.21614865]
[1748886536300,33.69614865,153.41,153.37,6.52017995]
[1748886536688,23.21614865,153.4,153.37,6.52017995]
[1748886538004,23.21614865,153.4,153.36,22.82176339]
[1748886538881,23.35831022,153.39,153.36,6.52060511]
[1748886539076,23.21614865,153.38,153.36,6.52060511]
[1748886540290,23.21614865,153.38,153.35,6.52103032]
[1748886540488,23.21614865,153.37,153.35,6.52103032]
[1748886540907,23.21614865,153.36,153.34,6.52132988]
[1748886541087,23.21614865,153.35,153.33,32.52169832]
[1748886541396,23.21614865,153.34,153.33,32.52169832]
[1748886541600,23.21614865,153.34,153.33,6.52169832]
[1748886542480,23.21614865,153.35,153.32,6.52230628]
[1748886544088,23.21614865,153.34,153.32,6.52230628]
[1748886544809,23.21614865,153.37,153.33,23.21614865]
[1748886545009,23.21614865,153.41,153.36,23.21614865]
[1748886545188,23.21614865,153.41,153.37,23.21614865]
[1748886545383,0.14216157,153.41,153.37,23.21614865]
[1748886545596,23.21614865,153.41,153.37,23.21614865]
[1748886546390,23.21614865,153.4,153.37,6.52017995]
[1748886546707,23.21614865,153.39,153.37,6.52017995]
[1748886547507,23.21614865,153.4,153.37,6.52017995]
[1748886548491,23.21614865,153.4,153.36,6.52060511]
[1748886548896,23.21614865,153.41,153.37,23.21614865]
[1748886549098,23.21614865,153.41,153.36,46.03826654]
[1748886549914,23.21614865,153.4,153.36,46.03826654]
[1748886550908,23.21614865,153.4,153.36,22.82211789]
[1748886552608,23.21614865,153.4,153.36,46.03826654]
[1748886553494,23.21614865,153.4,153.36,22.82211789]
[1748886554099,23.21614865,153.4,153.36,46.03826654]
[1748886554306,0.28432314,153.44,153.38,23.21614865]
[1748886554513,23.21614865,153.43,153.39,23.21614865]
[1748886555894,23.21614865,153.43,153.38,23.21614865]
[1748886556332,23.21614865,153.43,153.39,6.51932981]
[1748886556632,15.51775079,153.48,153.42,49.21614865]
[1748886556799,23.21614865,153.47,153.43,23.21614865]
[1748886557115,23.21614865,153.47,153.42,49.21614865]
[1748886557499,10.48,153.5,153.45,23.21614865]
[1748886557703,23.21614865,153.51,153.47,23.21614865]
[1748886557922,23.21614865,153.52,153.47,23.21614865]
[1748886558092,23.21614865,153.52,153.48,23.21614865]
[1748886558295,10.48,153.53,153.49,6.51508241]
[1748886558506,10.48,153.53,153.49,46.01893709]
[1748886558724,10.48,153.53,153.49,6.51508241]
[1748886558725,23.21614865,153.52,153.49,6.51508241]
[1748886559139,33.69614865,153.53,153.49,6.51508241]
[1748886560725,231.13165581,153.58,153.51,23.21614865]
[1748886560923,23.21614865,153.55,153.51,23.21614865]
[1748886561251,23.21614865,153.56,153.51,23.21614865]
[1748886561749,23.21614865,153.56,153.52,23.21614865]
[1748886562242,23.21614865,153.56,153.53,6.513385]
[1748886563922,0.42648471,153.57,153.53,6.513385]
[1748886564123,23.21614865,153.56,153.53,6.513385]
[1748886564720,23.21614865,153.57,153.53,6.513385]
[1748886565621,23.21614865,153.56,153.53,6.513385]
[1748886566347,23.21614865,153.55,153.53,6.513385]
[1748886567419,23.21614865,153.54,153.52,6.51366574]
[1748886568123,19.07613357,153.57,153.52,6.51366574]
[1748886568331,23.21614865,153.55,153.52,6.51366574]
[1748886569721,19.07613357,153.57,153.52,6.51366574]
[1748886569928,0.14216157,153.55,153.52,29.72981439]
[1748886570124,0.14216157,153.55,153.52,6.51366574]
[1748886570651,23.35831022,153.55,153.52,6.51366574]
[1748886570829,23.21614865,153.56,153.52,46.01433757]
[1748886571149,111.91614865,153.58,153.53,23.21614865]
[1748886571639,33.69614865,153.58,153.53,23.21614865]
[1748886572223,23.21614865,153.57,153.53,23.21614865]
[1748886572424,33.69614865,153.58,153.54,6.51296079]
[1748886573032,23.21614865,153.57,153.54,6.51296079]
[1748886573717,10.48,153.58,153.54,6.51296079]
[1748886573919,33.69614865,153.58,153.54,29.72910944]
[1748886575046,33.69614865,153.58,153.54,6.51296079]
[1748886575345,10.48,153.58,153.54,6.51296079]
[1748886575545,33.69614865,153.58,153.54,6.51296079]
[1748886575738,10.48,153.58,153.54,46.01151141]
[1748886575936,33.69614865,153.58,153.54,46.01151141]
[1748886576117,33.69614865,153.58,153.54,22.79536276]
[1748886576823,23.21614865,153.57,153.54,6.51296079]
[1748886577328,23.35831022,153.57,153.54,6.51296079]
[1748886579345,33.69614865,153.58,153.54,29.72910944]
[1748886579733,33.69614865,153.58,153.54,46.01151141]
[1748886579933,33.69614865,153.58,153.54,22.79536276]
[1748886580236,23.21614865,153.57,153.54,6.51296079]
[1748886580728,23.21614865,153.57,153.53,46.01299616]
[1748886581543,33.69614865,153.58,153.53,46.01299616]
[1748886582318,10.48,153.58,153.53,46.01299616]
[1748886582541,10.48,153.58,153.54,23.21614865]
[1748886582542,33.69614865,153.58,153.54,23.21614865]
[1748886582739,33.69614865,153.58,153.55,6.51253663]
[1748886583148,10.48,153.58,153.55,22.79387821]
[1748886583343,10.48,153.58,153.55,46.01002686]
[1748886583519,23.21614865,153.6,153.55,46.01002686]
[1748886583925,23.21614865,153.59,153.55,22.79387821]
[1748886584139,33.67614865,153.62,153.57,23.21614865]
[1748886584835,33.67614865,153.62,153.58,6.51126448]
[1748886586047,10.46,153.62,153.59,23.21614865]
[1748886586438,23.21614865,153.63,153.59,23.21614865]
[1748886586636,23.35831022,153.64,153.59,23.21614865]
[1748886587255,23.21614865,153.63,153.58,46.00557434]
[1748886588540,23.21614865,153.62,153.58,6.51126448]
[1748886589231,23.21614865,153.61,153.58,6.51126448]
[1748886591332,23.21614865,153.6,153.58,6.51126448]
[1748886591731,23.21614865,153.6,153.57,26.0]
[1748886591732,23.21614865,153.6,153.57,32.51158166]
[1748886592053,0.28432314,153.63,153.57,32.51158166]
[1748886592235,23.21614865,153.6,153.57,32.51158166]
[1748886597646,0.42648471,153.64,153.57,72.00695151]
[1748886597856,23.21614865,153.62,153.58,23.21614865]
[1748886598163,23.21614865,153.62,153.57,72.00695151]
[1748886598947,23.21614865,153.61,153.57,72.00695151]
[1748886599170,0.14216157,153.64,153.58,23.21614865]
[1748886599465,23.21614865,153.63,153.59,6.51084054]
[1748886599966,23.21614865,153.6,153.59,6.51084054]
[1748886600371,23.21614865,153.6,153.58,6.51113438]
[1748886600569,23.21614865,153.59,153.56,6.51211252]
[1748886600865,23.21614865,153.57,153.54,6.51296079]
[1748886601066,33.67614865,153.6,153.54,6.51296079]
[1748886601067,23.21614865,153.56,153.54,6.51296079]
[1748886603174,23.21614865,153.57,153.54,6.51296079]
[1748886603472,23.21614865,153.56,153.54,6.51296079]
[1748886603645,23.21614865,153.57,153.54,6.51296079]
[1748886604845,23.21614865,153.57,153.54,22.79536276]
[1748886605366,23.21614865,153.58,153.54,46.01151141]
[1748886605773,23.21614865,153.58,153.54,22.79536276]
[1748886606376,23.21614865,153.58,153.54,46.01151141]
[1748886607057,0.28432314,153.61,153.54,46.01151141]
[1748886607247,10.60216157,153.62,153.56,23.21614865]
[1748886607248,23.21614865,153.6,153.56,23.21614865]
[1748886607443,23.35831022,153.62,153.57,23.21614865]
[1748886608674,10.60216157,153.63,153.59,23.21614865]
[1748886608675,23.21614865,153.63,153.59,23.21614865]
[1748886609371,23.21614865,153.63,153.6,6.51041666]
[1748886610565,23.21614865,153.63,153.6,22.78645832]
[1748886610769,23.21614865,153.61,153.6,6.51041666]
[1748886610951,23.21614865,153.61,153.58,26.0]
[1748886611578,23.21614865,153.59,153.58,6.51108883]
[1748886612280,23.21614865,153.59,153.54,42.28233248]
[1748886612477,23.21614865,153.57,153.54,42.28233248]
[1748886613077,23.21614865,153.57,153.55,6.51253663]
[1748886614178,23.21614865,153.56,153.55,6.51253663]
[1748886614552,23.21614865,153.57,153.55,6.51253663]
[1748886615866,23.21614865,153.56,153.55,6.51253663]
[1748886616587,23.21614865,153.57,153.55,6.51253663]
[1748886617175,23.21614865,153.56,153.55,6.51253663]
[1748886618262,23.21614865,153.56,153.54,32.51283931]
[1748886618463,23.21614865,153.55,153.54,6.51283931]
[1748886619881,0.14216157,153.54,153.53,3.3795244]
[1748886620062,23.35831022,153.54,153.53,3.3795244]
[1748886620574,23.21614865,153.54,153.53,9.8929094]
[1748886620782,33.67614865,153.55,153.53,9.8929094]
[1748886621078,23.21614865,153.54,153.53,9.8929094]
[1748886624659,23.21614865,153.54,153.53,3.3795244]
[1748886624892,23.35831022,153.54,153.53,3.3795244]
[1748886625886,23.35831022,153.54,153.53,9.8929094]
[1748886626189,10.46,153.55,153.53,9.8929094]
[1748886626500,23.21614865,153.54,153.53,9.8929094]
[1748886627369,6.2644,153.61,153.53,9.8929094]
[1748886627563,23.21614865,153.56,153.53,26.17637191]
[1748886627763,23.21614865,153.55,153.53,26.17637191]
[1748886628386,23.21614865,153.54,153.53,9.8929094]
[1748886630487,23.21614865,153.55,153.53,9.8929094]
[1748886632489,23.21614865,153.56,153.53,9.8929094]
[1748886633074,23.21614865,153.55,153.53,9.8929094]
[1748886633390,23.21614865,153.56,153.53,9.8929094]
[1748886634890,23.21614865,153.55,153.53,9.8929094]
[1748886641381,23.21614865,153.56,153.53,9.8929094]
[1748886643202,23.21614865,153.55,153.53,9.8929094]
[1748886643381,23.21614865,153.54,153.53,9.8929094]
[1748886644085,23.21614865,153.54,153.53,3.3795244]
[1748886644410,23.21614865,153.54,153.53,9.8929094]
[1748886645277,23.21614865,153.54,153.53,3.3795244]
[1748886645514,0.42648471,153.56,153.53,9.8929094]
[1748886645811,23.21614865,153.54,153.53,9.8929094]
[1748886646190,0.42648471,153.56,153.53,9.8929094]
[1748886646395,23.21614865,153.54,153.53,9.8929094]
[1748886648284,23.21614865,153.55,153.53,9.8929094]
[1748886648485,23.21614865,153.54,153.53,9.8929094]
[1748886648785,23.21614865,153.55,153.53,9.8929094]
[1748886651017,23.35831022,153.54,153.53,3.3795244]
[1748886651517,0.42648471,153.52,153.45,22.82714953]
[1748886651692,0.42648471,153.52,153.46,6.51635605]
[1748886651693,23.21614865,153.48,153.46,6.51635605]
[1748886651892,23.21614865,153.49,153.46,22.80724618]
[1748886652108,23.21614865,153.5,153.46,22.80724618]
[1748886652306,23.21614865,153.49,153.46,22.80724618]
[1748886652615,23.21614865,153.48,153.46,6.51635605]
[1748886653597,23.21614865,153.49,153.46,6.51635605]
[1748886654300,23.21614865,153.48,153.46,6.51635605]
[1748886655196,23.21614865,153.47,153.46,6.51635605]
[1748886656013,23.21614865,153.47,153.44,22.8101984]
[1748886656805,23.21614865,153.47,153.44,6.51720542]
[1748886656992,23.21614865,153.46,153.44,6.51720542]
[1748886658313,23.21614865,153.47,153.44,6.51720542]
[1748886660001,0.14216157,153.48,153.44,22.81021897]
[1748886660251,0.14216157,153.48,153.44,46.02636762]
[1748886660252,23.21614865,153.48,153.44,46.02636762]
[1748886660421,33.81831022,153.5,153.45,23.21614865]
[1748886660636,23.21614865,153.49,153.44,46.02636762]
[1748886662523,23.21614865,153.5,153.46,23.21614865]
[1748886662840,23.21614865,153.49,153.45,23.21614865]
[1748886663045,23.21614865,153.49,153.44,55.39624608]
[1748886663046,33.67614865,153.52,153.47,23.21614865]
[1748886663327,18.64964886,153.55,153.48,23.21614865]
[1748886663533,6.2373,153.58,153.49,26.0]
[1748886663714,10.46,153.56,153.51,23.21614865]
[1748886663907,0.14216157,153.55,153.52,6.51380927]
[1748886664105,23.21614865,153.55,153.52,6.51380927]
[1748886664308,23.21614865,153.54,153.52,6.51380927]
[1748886664603,23.35831022,153.53,153.5,6.51465798]
[1748886664805,23.21614865,153.52,153.5,6.51465798]
[1748886665593,23.21614865,153.52,153.49,6.51508241]
[1748886667125,23.21614865,153.51,153.49,6.51508241]
[1748886667813,23.21614865,153.5,153.48,6.5155069]
[1748886669028,0.14216157,153.5,153.46,6.3042]
[1748886669229,23.21614865,153.47,153.45,6.51678071]
[1748886673003,10.6,153.53,153.46,49.21614865]
[1748886673224,152.91176248,153.57,153.45,55.39263603]
[1748886673225,23.21614865,153.54,153.49,23.21614865]
[1748886673529,23.21614865,153.53,153.48,49.21614865]
[1748886673826,23.21614865,153.52,153.48,49.21614865]
[1748886674033,23.21614865,153.52,153.48,26.0]
[1748886674207,23.21614865,153.52,153.49,6.51508241]
[1748886674926,23.21614865,153.51,153.49,6.51508241]
[1748886675118,23.21614865,153.52,153.49,6.51508241]
[1748886676627,23.21614865,153.53,153.49,6.51508241]
[1748886677539,23.21614865,153.52,153.49,6.51508241]
[1748886682847,23.35831022,153.54,153.49,29.73123106]
[1748886683157,23.21614865,153.58,153.53,23.21614865]
[1748886683319,33.81614865,153.59,153.54,23.21614865]
[1748886683518,23.21614865,153.57,153.52,46.0144811]
[1748886686142,23.21614865,153.57,153.52,22.79833245]
[1748886686328,23.21614865,153.56,153.52,46.0144811]
[1748886686729,23.21614865,153.55,153.52,6.51380927]
[1748886686931,18.64964886,153.57,153.52,6.51380927]
[1748886686932,23.21614865,153.53,153.52,6.51380927]
[1748886687333,0.14216157,153.57,153.52,6.51380927]
[1748886687529,33.95831022,153.57,153.52,29.72995792]
[1748886688545,23.21614865,153.58,153.54,23.21614865]
[1748886688851,23.21614865,153.58,153.53,23.21614865]
[1748886689053,23.21614865,153.57,153.53,23.21614865]
[1748886690235,23.21614865,153.57,153.54,6.51296079]
[1748886691243,0.14216157,153.58,153.54,29.72910944]
[1748886691448,27.5927,153.62,153.54,46.01151141]
[1748886691747,27.5927,153.62,153.55,23.21614865]
[1748886691748,23.21614865,153.6,153.55,23.21614865]
[1748886692156,23.21614865,153.6,153.56,6.51211252]
[1748886692823,23.21614865,153.59,153.56,6.51211252]
[1748886695961,10.6,153.61,153.56,46.00854249]
[1748886695962,23.35831022,153.61,153.56,46.00854249]
[1748886696548,23.35831022,153.61,153.57,23.21614865]
[1748886696935,23.35831022,153.61,153.56,22.79239384]
[1748886696936,9.35355076,153.63,153.58,23.21614865]
[1748886697139,47.09793785,153.64,153.6,29.72656531]
[1748886697329,62.08319011,153.64,153.6,22.78645832]
[1748886697534,62.08319011,153.64,153.6,46.00260697]
[1748886697765,62.08319011,153.64,153.6,22.78645832]
[1748886698742,23.21614865,153.63,153.6,6.51041666]
[1748886698943,62.08319011,153.64,153.6,6.51041666]
[1748886699554,62.08319011,153.64,153.6,22.78645832]
[1748886699759,38.86704146,153.64,153.61,23.21614865]
[1748886701235,38.86704146,153.64,153.62,6.50956906]
[1748886701461,23.35831022,153.63,153.6,6.51036336]
[1748886701663,23.21614865,153.61,153.59,6.51068574]
[1748886701968,23.21614865,153.6,153.55,24.75464865]
[1748886702677,23.21614865,153.6,153.57,26.0]
[1748886702841,23.21614865,153.59,153.56,6.51211252]
[1748886703540,23.21614865,153.59,153.55,6.51253663]
[1748886704443,23.21614865,153.59,153.55,46.01002686]
[1748886709460,0.42648471,153.61,153.55,46.01002686]
[1748886709461,0.14216157,153.61,153.55,46.01002686]
[1748886709665,23.35831022,153.61,153.57,23.21614865]
[1748886709868,23.21614865,153.6,153.56,23.21614865]
[1748886711361,23.21614865,153.6,153.57,6.51168848]
[1748886713473,23.21614865,153.6,153.57,22.79090968]
[1748886714055,62.08319011,153.64,153.59,23.21614865]
[1748886714293,62.08319011,153.64,153.6,23.21614865]
[1748886714456,62.08319011,153.64,153.59,23.21614865]
[1748886714969,62.08319011,153.64,153.6,49.21614865]
[1748886715457,62.08319011,153.64,153.61,6.50999283]
[1748886716179,38.86704146,153.64,153.61,6.50999283]
[1748886716367,62.08319011,153.64,153.61,6.50999283]
[1748886717080,38.86704146,153.64,153.61,22.78497492]
[1748886717262,38.86704146,153.64,153.61,46.00112357]
[1748886717762,38.86704146,153.64,153.61,22.78497492]
[1748886718066,38.86704146,153.64,153.61,46.00112357]
[1748886719678,38.86704146,153.64,153.61,22.78497492]
[1748886720866,23.21614865,153.62,153.58,16.27732022]
[1748886721069,23.21614865,153.61,153.58,22.7885847]
[1748886721460,23.21614865,153.61,153.58,48.7885847]
[1748886721755,0.14216157,153.63,153.58,48.7885847]
[1748886721956,23.21614865,153.62,153.58,48.7885847]
[1748886722177,23.21614865,153.61,153.58,32.51126448]
[1748886723193,23.21614865,153.63,153.58,32.51126448]
[1748886723485,62.08319011,153.64,153.6,23.21614865]
[1748886723663,62.08319011,153.64,153.59,23.21614865]
[1748886725071,23.21614865,153.63,153.59,23.21614865]
[1748886725396,23.21614865,153.63,153.6,6.51041666]
[1748886726579,62.08319011,153.64,153.6,6.51041666]
[1748886726768,38.86704146,153.64,153.6,46.00260697]
[1748886726969,62.08319011,153.64,153.6,22.78645832]
[1748886727261,62.08319011,153.64,153.6,46.00260697]
[1748886728466,62.08319011,153.64,153.6,22.78645832]
[1748886728666,38.86704146,153.64,153.61,26.0]
[1748886729464,23.21614865,153.68,153.63,23.21614865]
[1748886729691,23.21614865,153.68,153.64,23.21614865]
[1748886730495,23.21614865,153.69,153.64,23.21614865]
[1748886730870,23.21614865,153.68,153.64,23.21614865]
[1748886731397,23.21614865,153.68,153.65,6.50829808]
[1748886731864,23.21614865,153.67,153.65,6.50829808]
[1748886732273,10.56,153.7,153.65,6.50829808]
[1748886732274,23.21614865,153.68,153.65,6.50829808]
[1748886736694,23.21614865,153.68,153.63,45.99815736]
[1748886737278,23.21614865,153.66,153.63,22.78200871]
[1748886737480,23.21614865,153.67,153.63,45.99815736]
[1748886737780,23.21614865,153.68,153.63,45.99815736]
[1748886737982,23.21614865,153.69,153.65,23.21614865]
[1748886738570,23.21614865,153.68,153.64,23.21614865]
[1748886738769,23.21614865,153.68,153.65,6.50829808]
[1748886739483,23.21614865,153.67,153.65,6.50829808]
[1748886740579,23.21614865,153.68,153.65,6.50829808]
[1748886740795,23.21614865,153.68,153.64,6.50872168]
[1748886741481,23.21614865,153.68,153.64,45.99667454]
[1748886742274,50.92432314,153.71,153.64,45.99667454]
[1748886742275,0.28432314,153.71,153.64,45.99667454]
[1748886742503,0.42648471,153.71,153.64,71.99667454]
[1748886742683,23.21614865,153.69,153.64,71.99667454]
[1748886743574,23.21614865,153.69,153.65,23.21614865]
[1748886743907,23.21614865,153.7,153.66,23.21614865]
[1748886744707,0.28432314,153.73,153.67,45.99222725]
[1748886744932,10.52,153.76,153.7,26.0]
[1748886745079,28.48761737,153.77,153.73,23.21614865]
[1748886745393,23.21614865,153.79,153.75,23.21614865]
[1748886745775,23.21614865,153.78,153.73,138.51614865]
[1748886746803,23.21614865,153.78,153.74,6.50448809]
[1748886747019,23.21614865,153.77,153.74,6.50448809]
[1748886748379,23.21614865,153.78,153.74,6.50448809]
[1748886749477,6.92854048,153.8,153.74,6.50448809]
[1748886749478,23.21614865,153.77,153.74,6.50448809]
[1748886749877,23.21614865,153.78,153.74,6.50448809]
[1748886751805,23.21614865,153.75,153.72,6.50533437]
[1748886751987,23.21614865,153.73,153.7,6.50618087]
[1748886752298,23.21614865,153.72,153.7,6.50618087]
[1748886752474,23.21614865,153.72,153.69,6.5066042]
[1748886753087,0.42648471,153.75,153.69,6.5066042]
[1748886753289,23.21614865,153.73,153.69,29.72275285]
[1748886753593,23.21614865,153.73,153.69,6.5066042]
[1748886753905,0.42648471,153.75,153.7,23.21614865]
[1748886753906,23.21614865,153.74,153.7,23.21614865]
[1748886754277,0.14216157,153.75,153.7,23.21614865]
[1748886754513,23.21614865,153.74,153.7,23.21614865]
[1748886754810,23.21614865,153.74,153.69,45.98926335]
[1748886755884,50.7,153.76,153.7,23.21614865]
[1748886756109,23.21614865,153.75,153.7,23.21614865]
[1748886757111,23.21614865,153.74,153.7,23.21614865]
[1748886758109,10.52,153.76,153.71,6.50575759]
[1748886758300,23.21614865,153.74,153.71,6.50575759]
[1748886760419,23.21614865,153.74,153.7,6.50618087]
[1748886760594,23.21614865,153.74,153.7,22.77163304]
[1748886762117,23.21614865,153.73,153.7,22.77163304]
[1748886763206,23.21614865,153.71,153.69,95.80651247]
[1748886763423,0.42648471,153.74,153.69,6.50651247]
[1748886763720,23.21614865,153.71,153.69,6.50651247]
[1748886764799,23.21614865,153.7,153.68,32.50685732]
[1748886765003,23.21614865,153.69,153.68,32.50685732]
[1748886765194,23.21614865,153.69,153.68,6.50685732]
[1748886765395,23.21614865,153.69,153.65,6.50829808]
[1748886765621,23.21614865,153.68,153.65,32.50829808]
[1748886765913,23.21614865,153.69,153.65,48.77904328]
[1748886766215,23.21614865,153.7,153.65,45.99519193]
[1748886766415,23.21614865,153.7,153.65,71.99519193]
[1748886766789,0.14216157,153.72,153.66,23.21614865]
[1748886766995,23.21614865,153.71,153.66,23.21614865]
[1748886767433,23.21614865,153.7,153.66,23.21614865]
[1748886767722,23.21614865,153.71,153.66,23.21614865]
[1748886768642,23.21614865,153.71,153.67,6.50745103]
[1748886770313,23.21614865,153.7,153.67,6.50745103]
[1748886771040,0.42648471,153.74,153.67,22.7760786]
[1748886771336,23.21614865,153.71,153.67,45.99222725]
[1748886771533,23.21614865,153.71,153.67,22.7760786]
[1748886772200,23.21614865,153.7,153.67,22.7760786]
[1748886772601,23.21614865,153.68,153.67,6.50745103]
[1748886772886,23.21614865,153.68,153.65,95.80789986]
[1748886773125,23.21614865,153.66,153.65,95.80789986]
[1748886773319,23.21614865,153.66,153.65,6.50789986]
[1748886774202,23.21614865,153.66,153.6,39.49129407]
[1748886774402,46.95026814,153.71,153.6,105.57514542]
[1748886774403,23.21614865,153.64,153.6,105.57514542]
[1748886774629,23.21614865,153.64,153.61,26.0]
[1748886775226,23.21614865,153.64,153.61,6.50999283]
[1748886775931,23.21614865,153.64,153.61,48.78497492]
[1748886776139,23.21614865,153.63,153.61,6.50999283]
[1748886776304,23.21614865,153.62,153.61,6.50999283]
[1748886776504,0.42648471,153.66,153.61,6.50999283]
[1748886776702,23.21614865,153.63,153.61,6.50999283]
[1748886777201,23.21614865,153.63,153.6,6.51041666]
[1748886779025,23.21614865,153.62,153.6,6.51041666]
[1748886780483,6.93457034,153.66,153.57,6.51168848]
[1748886780484,23.21614865,153.61,153.57,6.51168848]
[1748886780679,23.21614865,153.59,153.57,6.51168848]
[1748886781742,23.21614865,153.6,153.57,6.51168848]
[1748886782239,0.14216157,153.62,153.57,22.79090968]
[1748886782485,23.21614865,153.61,153.57,22.79090968]
[1748886783776,23.21614865,153.6,153.57,22.79090968]
[1748886794983,23.21614865,153.61,153.57,22.79090968]
[1748886798019,1.6601,153.69,153.58,23.21614865]
[1748886798187,1.6601,153.69,153.63,23.21614865]
[1748886798393,1.6601,153.69,153.64,23.21614865]
[1748886798394,35.37624865,153.69,153.64,23.21614865]
[1748886798619,0.14216157,153.68,153.64,23.21614865]
[1748886798915,33.71614865,153.7,153.65,23.21614865]
[1748886799114,0.14216157,153.69,153.65,23.21614865]
[1748886799489,0.14216157,153.69,153.66,6.50787452]
[1748886800219,33.71614865,153.7,153.66,6.50787452]
[1748886800422,0.14216157,153.69,153.66,6.50787452]
[1748886801429,0.28432314,153.71,153.66,45.99370949]
[1748886801430,23.21614865,153.71,153.66,45.99370949]
[1748886802503,23.21614865,153.72,153.67,23.21614865]
[1748886803038,23.21614865,153.71,153.67,23.21614865]
[1748886803339,23.21614865,153.71,153.66,45.99370949]
[1748886805438,12.0688,153.73,153.66,45.99370949]
[1748886805439,23.21614865,153.69,153.66,6.50787452]
[1748886805608,23.21614865,153.68,153.66,6.50787452]
[1748886805813,23.21614865,153.68,153.65,6.50820977]
[1748886807231,0.42648471,153.71,153.65,6.50820977]